[Event "Rapid Tournament (RAP)"]
[Site "Biel, Switzerland"]
[Date "2026.07.12"]
[Round "3.36"]
[White "Pinelli, Gian"]
[Black "Hashem, Khaled"]
[Result "1-0"]
[TimeControl "15 + 5"]
[WhiteTitle "-"]
[BlackTitle "-"]
[WhiteFideId "1348710"]
[BlackFideId "10300201"]
[WhiteElo "1774"]
[BlackElo "1926"]

1. d4 {[%emt 00:00:04]} d5 {[%clk 00:15:07]} 2. c4 {[%clk 00:15:11]} {[%emt
00:00:04]} c6 {[%clk 00:15:11]} 3. Nc3 {[%clk 00:15:14]} Nf6 {[%clk 00:15:16]}
4. Nf3 {[%clk 00:15:18]} {[%emt 00:00:02]} e6 {[%clk 00:15:10]} {[%emt
00:00:12]} 5. Bg5 {[%clk 00:15:21]} Nbd7 {[%clk 00:15:03]} {[%emt 00:00:12]} 6.
e3 {[%clk 00:15:21]} {[%emt 00:00:04]} Be7 {[%clk 00:15:07]} {[%emt 00:00:02]}
7. Qc2 {[%clk 00:15:16]} {[%emt 00:00:10]} h6 {[%clk 00:15:10]} {[%emt
00:00:02]} 8. Bh4 {[%clk 00:15:13]} {[%emt 00:00:07]} O-O {[%clk 00:14:44]}
{[%emt 00:00:32]} 9. a3 {[%clk 00:15:17]} {[%emt 00:00:02]} b6 {[%clk
00:10:59]} {[%emt 00:03:49]} 10. cxd5 {[%clk 00:15:16]} {[%emt 00:00:06]} cxd5
{[%clk 00:10:36]} {[%emt 00:00:29]} 11. Bd3 {[%clk 00:15:15]} {[%emt 00:00:05]}
Bb7 {[%clk 00:10:38]} {[%emt 00:00:03]} 12. O-O {[%clk 00:15:15]} {[%emt
00:00:05]} Rc8 {[%clk 00:10:41]} {[%emt 00:00:02]} 13. Rfc1 {[%clk 00:15:04]}
{[%emt 00:00:15]} Ne4 {[%clk 00:10:34]} {[%emt 00:00:14]} 14. Bg3 {[%clk
00:13:56]} {[%emt 00:01:12]} Nxg3 {[%clk 00:08:53]} {[%emt 00:01:46]} 15. hxg3
{[%clk 00:14:00]} {[%emt 00:00:02]} Bd6 {[%clk 00:08:38]} {[%emt 00:00:20]} 16.
Qb1 {[%clk 00:13:56]} {[%emt 00:00:09]} a6 {[%clk 00:08:39]} {[%emt 00:00:04]}
17. b4 {[%clk 00:13:27]} {[%emt 00:00:33]} b5 {[%clk 00:08:21]} {[%emt
00:00:23]} 18. a4 {[%clk 00:13:12]} {[%emt 00:00:20]} bxa4 {[%clk 00:08:24]}
{[%emt 00:00:02]} 19. Nxa4 {[%clk 00:13:15]} {[%emt 00:00:02]} Rxc1+ {[%clk
00:07:00]} {[%emt 00:01:29]} 20. Qxc1 {[%clk 00:13:10]} {[%emt 00:00:10]} Bxb4
{[%clk 00:07:04]} {[%emt 00:00:02]} 21. Qb2 {[%clk 00:12:43]} {[%emt 00:00:32]}
a5 {[%clk 00:07:03]} {[%emt 00:00:06]} 22. Nc3 {[%clk 00:12:10]} {[%emt
00:00:36]} Nb6 {[%clk 00:06:49]} {[%emt 00:00:21]} 23. Ne5 {[%clk 00:11:38]}
{[%emt 00:00:35]} Qe7 {[%clk 00:05:42]} {[%emt 00:01:13]} 24. Na2 {[%clk
00:09:29]} {[%emt 00:02:14]} Rc8 {[%clk 00:04:15]} {[%emt 00:01:31]} 25. Nxb4
{[%clk 00:08:46]} {[%emt 00:00:49]} axb4 {[%clk 00:04:19]} {[%emt 00:00:01]} 26.
Ra7 {[%clk 00:07:57]} {[%emt 00:00:50]} Nc4 {[%clk 00:02:17]} {[%emt 00:02:11]}
27. Nxc4 {[%clk 00:07:39]} {[%emt 00:00:24]} dxc4 {[%clk 00:02:21]} 28. Be4
{[%clk 00:07:43]} {[%emt 00:00:01]} Rc7 {[%clk 00:02:25]} 29. Bxb7 {[%clk
00:07:45]} {[%emt 00:00:03]} Rxb7 {[%clk 00:02:29]} {[%emt 00:00:01]} 30. Ra8+
{[%clk 00:07:49]} {[%emt 00:00:01]} Kh7 {[%clk 00:02:34]} {[%emt 00:00:01]} 31.
Qc2+ {[%clk 00:07:53]} g6 {[%clk 00:02:30]} {[%emt 00:00:08]} 32. Qxc4 {[%clk
00:07:45]} {[%emt 00:00:13]} b3 {[%clk 00:02:34]} {[%emt 00:00:01]} 33. Qc8
{[%clk 00:07:43]} {[%emt 00:00:07]} 1-0

[Event "Rapid Tournament (RAP)"]
[Site "Biel, Switzerland"]
[Date "2026.07.12"]
[Round "3.37"]
[White "Pinson, Clement"]
[Black "Bachmann, Daniel"]
[Result "1-0"]
[TimeControl "15 + 5"]
[WhiteTitle "-"]
[BlackTitle "-"]
[WhiteFideId "26098660"]
[BlackFideId "1357492"]
[WhiteElo "1924"]
[BlackElo "1786"]

1. e4 {[%clk 00:15:08]} {[%emt 00:00:02]} e6 {[%clk 00:15:09]} {[%emt
00:00:01]} 2. d4 {[%clk 00:15:11]} {[%emt 00:00:01]} d5 {[%clk 00:15:13]} 3. e5
{[%clk 00:15:15]} {[%emt 00:00:01]} c5 {[%clk 00:15:17]} {[%emt 00:00:01]} 4.
c3 {[%clk 00:15:19]} {[%emt 00:00:02]} Nc6 {[%clk 00:15:21]} 5. Nf3 {[%clk
00:15:23]} {[%emt 00:00:02]} Qb6 {[%clk 00:15:25]} {[%emt 00:00:01]} 6. Bd3
{[%clk 00:15:25]} {[%emt 00:00:02]} cxd4 {[%clk 00:15:26]} {[%emt 00:00:04]} 7.
cxd4 {[%clk 00:15:29]} {[%emt 00:00:02]} Bd7 {[%clk 00:15:31]} 8. O-O {[%clk
00:15:29]} {[%emt 00:00:05]} Nxd4 {[%clk 00:15:34]} {[%emt 00:00:02]} 9. Nxd4
{[%clk 00:15:32]} {[%emt 00:00:01]} Qxd4 {[%clk 00:15:38]} {[%emt 00:00:02]} 10.
Nc3 {[%clk 00:15:36]} {[%emt 00:00:02]} a6 {[%clk 00:15:42]} 11. Qe2 {[%clk
00:15:39]} {[%emt 00:00:01]} Ne7 {[%clk 00:15:15]} {[%emt 00:00:32]} 12. Rd1
{[%clk 00:15:42]} {[%emt 00:00:02]} Qb6 {[%clk 00:14:06]} {[%emt 00:01:14]} 13.
Be3 {[%clk 00:15:04]} {[%emt 00:00:42]} Qd8 {[%clk 00:13:58]} {[%emt 00:00:14]}
14. f4 {[%clk 00:14:46]} {[%emt 00:00:23]} Nc6 {[%clk 00:13:54]} {[%emt
00:00:09]} 15. Bf2 {[%clk 00:14:23]} {[%emt 00:00:28]} Rc8 {[%clk 00:11:53]}
{[%emt 00:02:06]} 16. Rac1 {[%clk 00:14:25]} {[%emt 00:00:02]} Nb4 {[%clk
00:10:15]} {[%emt 00:01:43]} 17. Bb1 {[%clk 00:14:25]} {[%emt 00:00:05]} Be7
{[%clk 00:08:41]} {[%emt 00:01:39]} 18. a3 {[%clk 00:14:13]} {[%emt 00:00:18]}
Nc6 {[%clk 00:08:45]} {[%emt 00:00:01]} 19. f5 {[%clk 00:14:11]} {[%emt
00:00:07]} Bg5 {[%clk 00:07:13]} {[%emt 00:01:37]} 20. Rc2 {[%clk 00:12:35]}
{[%emt 00:01:41]} Bf4 {[%clk 00:07:02]} {[%emt 00:00:15]} 21. Nxd5 {[%clk
00:10:48]} {[%emt 00:01:52]} exd5 {[%clk 00:06:45]} {[%emt 00:00:22]} 22. e6
{[%clk 00:10:51]} {[%emt 00:00:02]} Bxe6 {[%clk 00:05:40]} {[%emt 00:01:11]} 23.
fxe6 {[%clk 00:10:50]} {[%emt 00:00:05]} O-O {[%clk 00:05:21]} {[%emt
00:00:25]} 24. Rxc6 {[%clk 00:10:24]} {[%emt 00:00:31]} Bxh2+ {[%clk 00:03:28]}
{[%emt 00:01:58]} 25. Kxh2 {[%clk 00:10:05]} {[%emt 00:00:24]} Rxc6 {[%clk
00:03:23]} {[%emt 00:00:10]} 26. e7 {[%clk 00:08:47]} {[%emt 00:01:23]} Qd6+
{[%clk 00:03:01]} {[%emt 00:00:27]} 27. Bg3 {[%clk 00:08:49]} {[%emt 00:00:02]}
Qh6+ {[%clk 00:03:05]} {[%emt 00:00:02]} 28. Kg1 {[%clk 00:08:52]} {[%emt
00:00:02]} Re8 {[%clk 00:02:57]} {[%emt 00:00:12]} 29. Rxd5 {[%clk 00:02:46]}
{[%emt 00:06:11]} Re6 {[%clk 00:02:21]} {[%emt 00:00:41]} 30. Rd8 {[%clk
00:02:15]} {[%emt 00:00:38]} Qc1+ {[%clk 00:01:45]} {[%emt 00:00:41]} 31. Qf1
{[%clk 00:01:49]} {[%emt 00:00:30]} Qxf1+ {[%clk 00:01:32]} 32. Kxf1 {[%clk
00:01:52]} {[%emt 00:00:19]} R6xe7 {[%clk 00:01:33]} {[%emt 00:00:04]} 33.
Rxe8+ {[%clk 00:01:55]} {[%emt 00:00:03]} Rxe8 {[%emt 00:00:04]} 34. Kf2 {[%clk
00:01:51]} {[%emt 00:00:06]} g6 {[%clk 00:01:39]} {[%emt 00:00:02]} 35. Kf3
{[%clk 00:01:42]} {[%emt 00:00:15]} Kg7 {[%clk 00:01:43]} {[%emt 00:00:01]} 36.
Be4 {[%clk 00:01:43]} {[%emt 00:00:04]} b6 {[%clk 00:01:45]} {[%emt 00:00:03]}
37. Bf2 {[%clk 00:01:45]} {[%emt 00:00:03]} Re6 {[%clk 00:01:45]} {[%emt
00:00:05]} 38. Bd5 {[%clk 00:01:44]} {[%emt 00:00:06]} Rd6 {[%clk 00:01:45]}
{[%emt 00:00:05]} 39. Ke4 {[%clk 00:01:46]} {[%emt 00:00:03]} b5 {[%clk
00:01:43]} {[%emt 00:00:08]} 40. Bc5 {[%clk 00:01:46]} {[%emt 00:00:04]} Rd8
{[%clk 00:01:43]} {[%emt 00:00:04]} 41. Bb7 {[%clk 00:01:44]} {[%emt 00:00:09]}
Re8+ {[%clk 00:01:45]} {[%emt 00:00:03]} 42. Kf3 {[%clk 00:01:46]} {[%emt
00:00:03]} a5 {[%clk 00:01:47]} {[%emt 00:00:03]} 43. Bc6 {[%clk 00:01:47]}
{[%emt 00:00:03]} b4 {[%clk 00:01:17]} {[%emt 00:00:36]} 44. Bxe8 {[%clk
00:01:49]} {[%emt 00:00:02]} 1-0

[Event "Rapid Tournament (RAP)"]
[Site "Biel, Switzerland"]
[Date "2026.07.12"]
[Round "3.38"]
[White "Martin, Gerome"]
[Black "Wilhelm, Serge"]
[Result "0-1"]
[TimeControl "15 + 5"]
[WhiteTitle "-"]
[BlackTitle "-"]
[WhiteFideId "1360817"]
[BlackFideId "1305808"]
[WhiteElo "1757"]
[BlackElo "1923"]

1. e4 {[%clk 00:15:05]} {[%emt 00:00:04]} c6 {[%clk 00:15:09]} {[%emt
00:00:03]} 2. d4 {[%clk 00:15:05]} {[%emt 00:00:04]} d5 {[%clk 00:15:12]}
{[%emt 00:00:03]} 3. f3 {[%clk 00:15:08]} e6 {[%clk 00:15:15]} {[%emt
00:00:03]} 4. Nc3 {[%clk 00:14:50]} {[%emt 00:00:23]} Bb4 {[%clk 00:15:17]}
{[%emt 00:00:02]} 5. Bd2 {[%clk 00:14:33]} {[%emt 00:00:22]} Nf6 {[%clk
00:15:09]} {[%emt 00:00:13]} 6. a3 {[%clk 00:14:16]} {[%emt 00:00:22]} Ba5
{[%clk 00:14:40]} {[%emt 00:00:34]} 7. e5 {[%clk 00:14:14]} {[%emt 00:00:07]}
Nfd7 {[%clk 00:14:43]} {[%emt 00:00:02]} 8. f4 {[%clk 00:14:08]} {[%emt
00:00:11]} g6 {[%clk 00:14:21]} {[%emt 00:00:27]} 9. Nf3 {[%clk 00:13:45]}
{[%emt 00:00:28]} Bb6 {[%clk 00:14:17]} {[%emt 00:00:10]} 10. Bd3 {[%clk
00:13:12]} {[%emt 00:00:36]} a6 {[%clk 00:14:00]} {[%emt 00:00:23]} 11. O-O
{[%clk 00:12:51]} {[%emt 00:00:25]} c5 {[%clk 00:14:03]} {[%emt 00:00:03]} 12.
Ne2 {[%clk 00:12:30]} {[%emt 00:00:26]} Nc6 {[%clk 00:13:57]} {[%emt 00:00:11]}
13. c3 {[%clk 00:12:08]} {[%emt 00:00:27]} Ba7 {[%clk 00:12:40]} {[%emt
00:01:22]} 14. Kh1 {[%clk 00:12:09]} {[%emt 00:00:04]} b5 {[%clk 00:11:38]}
{[%emt 00:01:08]} 15. Be1 {[%clk 00:08:34]} {[%emt 00:03:39]} cxd4 {[%clk
00:10:50]} {[%emt 00:00:53]} 16. Nexd4 {[%clk 00:08:30]} {[%emt 00:00:09]} Nxd4
{[%clk 00:10:50]} {[%emt 00:00:05]} 17. Nxd4 {[%clk 00:08:01]} {[%emt
00:00:34]} Bb7 {[%clk 00:10:35]} {[%emt 00:00:20]} 18. Qg4 {[%clk 00:07:24]}
{[%emt 00:00:41]} h5 {[%clk 00:09:41]} {[%emt 00:01:00]} 19. Qh3 {[%clk
00:07:11]} {[%emt 00:00:18]} Nc5 {[%clk 00:09:28]} {[%emt 00:00:18]} 20. Bh4
{[%clk 00:06:17]} {[%emt 00:00:59]} Qd7 {[%clk 00:09:10]} {[%emt 00:00:23]} 21.
Bc2 {[%clk 00:06:20]} {[%emt 00:00:02]} Bb6 {[%clk 00:08:10]} {[%emt 00:01:04]}
22. Rad1 {[%clk 00:03:50]} {[%emt 00:02:36]} Bd8 {[%clk 00:07:59]} {[%emt
00:00:16]} 23. b4 {[%clk 00:03:38]} {[%emt 00:00:18]} Ne4 {[%clk 00:04:55]}
{[%emt 00:03:09]} 24. Bxe4 {[%clk 00:03:10]} {[%emt 00:00:32]} dxe4 {[%clk
00:04:59]} {[%emt 00:00:02]} 25. Bxd8 {[%clk 00:03:10]} {[%emt 00:00:05]} Rxd8
{[%clk 00:04:49]} {[%emt 00:00:15]} 26. Qe3 {[%clk 00:02:35]} {[%emt 00:00:39]}
Bd5 {[%clk 00:04:45]} {[%emt 00:00:09]} 27. Qg3 {[%clk 00:02:16]} {[%emt
00:00:24]} Qe7 {[%clk 00:04:04]} {[%emt 00:00:47]} 28. Qg5 {[%clk 00:01:36]}
{[%emt 00:00:45]} Rc8 {[%clk 00:03:30]} {[%emt 00:00:38]} 29. Qxe7+ {[%clk
00:01:26]} {[%emt 00:00:15]} Kxe7 {[%clk 00:03:34]} {[%emt 00:00:01]} 30. Rc1
{[%clk 00:01:30]} Rc7 {[%clk 00:03:20]} {[%emt 00:00:19]} 31. Rfe1 {[%clk
00:01:33]} {[%emt 00:00:03]} Rhc8 {[%clk 00:03:18]} {[%emt 00:00:06]} 32. Re3
{[%clk 00:01:37]} Rc4 {[%clk 00:03:11]} {[%emt 00:00:12]} 33. h4 {[%clk
00:01:33]} {[%emt 00:00:09]} Rxd4 {[%clk 00:03:13]} {[%emt 00:00:04]} 34. Kg1
{[%clk 00:01:03]} {[%emt 00:00:35]} Rd3 {[%clk 00:03:13]} {[%emt 00:00:05]} 35.
Rxd3 {[%clk 00:01:01]} {[%emt 00:00:06]} exd3 {[%clk 00:03:16]} {[%emt
00:00:02]} 36. Kf2 {[%clk 00:00:59]} {[%emt 00:00:07]} d2 {[%clk 00:03:17]}
{[%emt 00:00:04]} 37. Rd1 {[%clk 00:00:57]} {[%emt 00:00:08]} Rxc3 {[%clk
00:03:18]} {[%emt 00:00:04]} 38. Rxd2 {[%clk 00:01:00]} {[%emt 00:00:01]} Rxa3
{[%clk 00:03:19]} {[%emt 00:00:04]} 39. Rc2 {[%clk 00:01:02]} {[%emt 00:00:02]}
Ra2 {[%clk 00:03:22]} {[%emt 00:00:03]} 40. Rxa2 {[%clk 00:01:02]} {[%emt
00:00:06]} Bxa2 {[%clk 00:03:25]} {[%emt 00:00:01]} 41. Ke3 {[%clk 00:01:03]}
{[%emt 00:00:04]} Kd7 {[%clk 00:03:26]} {[%emt 00:00:04]} 42. Kd4 {[%clk
00:01:07]} {[%emt 00:00:01]} Kc6 {[%clk 00:03:30]} {[%emt 00:00:01]} 43. g3
{[%clk 00:01:07]} {[%emt 00:00:05]} Bc4 {[%clk 00:03:28]} {[%emt 00:00:07]} 44.
Ke4 {[%clk 00:01:02]} {[%emt 00:00:10]} Be2 {[%clk 00:03:22]} {[%emt 00:00:10]}
45. Ke3 {[%clk 00:00:59]} {[%emt 00:00:10]} Bg4 {[%clk 00:03:24]} {[%emt
00:00:02]} 46. Kd4 {[%clk 00:01:01]} {[%emt 00:00:02]} Kb6 {[%clk 00:03:27]}
{[%emt 00:00:02]} 47. Kc3 {[%clk 00:01:00]} {[%emt 00:00:06]} a5 {[%clk
00:03:31]} {[%emt 00:00:02]} 48. bxa5+ {[%clk 00:00:58]} {[%emt 00:00:07]} Kxa5
{[%clk 00:03:35]} {[%emt 00:00:01]} 49. Kb3 {[%clk 00:01:01]} {[%emt 00:00:03]}
b4 {[%clk 00:03:38]} {[%emt 00:00:01]} 50. Kb2 {[%clk 00:01:00]} {[%emt
00:00:06]} Kb5 {[%clk 00:03:33]} {[%emt 00:00:11]} 51. Kb3 {[%clk 00:01:03]}
{[%emt 00:00:01]} Kc5 {[%clk 00:03:37]} {[%emt 00:00:01]} 52. Kc2 {[%clk
00:01:05]} {[%emt 00:00:03]} Kd4 {[%clk 00:03:40]} {[%emt 00:00:03]} 53. Kb3
{[%clk 00:00:46]} {[%emt 00:00:24]} Ke3 {[%clk 00:03:43]} {[%emt 00:00:02]} 54.
Kxb4 {[%clk 00:00:49]} Kf3 {[%clk 00:03:46]} {[%emt 00:00:01]} 0-1

[Event "Rapid Tournament (RAP)"]
[Site "Biel, Switzerland"]
[Date "2026.07.12"]
[Round "3.39"]
[White "Aryan, Mehta"]
[Black "Paholok, Igor"]
[Result "1-0"]
[TimeControl "15 + 5"]
[WhiteTitle "-"]
[BlackTitle "-"]
[WhiteFideId "33329664"]
[BlackFideId "1338951"]
[WhiteElo "1921"]
[BlackElo "1784"]

1. d4 {[%clk 00:15:09]} g6 {[%clk 00:15:07]} {[%emt 00:00:03]} 2. c4 {[%clk
00:15:11]} {[%emt 00:00:04]} Bg7 {[%clk 00:15:10]} 3. Nc3 {[%clk 00:15:13]}
{[%emt 00:00:03]} c5 {[%clk 00:15:14]} {[%emt 00:00:01]} 4. d5 {[%clk
00:15:13]} {[%emt 00:00:05]} Bxc3+ {[%clk 00:15:17]} {[%emt 00:00:03]} 5. bxc3
{[%clk 00:15:15]} {[%emt 00:00:03]} f5 {[%clk 00:15:21]} 6. Nf3 {[%clk
00:15:00]} {[%emt 00:00:21]} d6 {[%clk 00:15:08]} {[%emt 00:00:17]} 7. Qc2
{[%clk 00:13:41]} {[%emt 00:01:24]} Nf6 {[%clk 00:15:05]} {[%emt 00:00:08]} 8.
Bh6 {[%clk 00:12:55]} {[%emt 00:00:51]} Qa5 {[%clk 00:14:01]} {[%emt 00:01:10]}
9. Bg7 {[%clk 00:12:06]} {[%emt 00:00:53]} Rg8 {[%clk 00:13:57]} {[%emt
00:00:09]} 10. Bxf6 {[%clk 00:12:10]} {[%emt 00:00:02]} exf6 {[%clk 00:14:01]}
{[%emt 00:00:01]} 11. e3 {[%clk 00:11:49]} {[%emt 00:00:25]} Nd7 {[%clk
00:13:08]} {[%emt 00:00:56]} 12. Be2 {[%clk 00:10:29]} {[%emt 00:01:28]} Nb6
{[%clk 00:13:12]} {[%emt 00:00:01]} 13. O-O {[%clk 00:10:18]} {[%emt 00:00:15]}
Na4 {[%clk 00:13:15]} {[%emt 00:00:02]} 14. Rac1 {[%clk 00:10:14]} {[%emt
00:00:08]} Bd7 {[%clk 00:13:18]} {[%emt 00:00:03]} 15. Nd2 {[%clk 00:08:28]}
{[%emt 00:01:51]} O-O-O {[%clk 00:12:54]} {[%emt 00:00:27]} 16. Nb3 {[%clk
00:08:05]} {[%emt 00:00:30]} Qc7 {[%clk 00:12:57]} {[%emt 00:00:02]} 17. Bd3
{[%clk 00:07:56]} {[%emt 00:00:15]} Nb6 {[%clk 00:12:05]} {[%emt 00:00:57]} 18.
Rb1 {[%clk 00:07:09]} {[%emt 00:00:51]} Kb8 {[%clk 00:11:47]} {[%emt 00:00:23]}
19. Nd2 {[%clk 00:04:02]} {[%emt 00:03:12]} Ba4 {[%clk 00:10:25]} {[%emt
00:01:26]} 20. Qc1 {[%clk 00:03:59]} {[%emt 00:00:09]} Ka8 {[%clk 00:10:18]}
{[%emt 00:00:12]} 21. Qa3 {[%clk 00:02:58]} {[%emt 00:01:06]} Kb8 {[%clk
00:07:43]} {[%emt 00:02:39]} 22. Rxb6 {[%clk 00:02:25]} {[%emt 00:00:39]} Qxb6
{[%clk 00:07:45]} {[%emt 00:00:03]} 23. Qxa4 {[%clk 00:02:10]} {[%emt
00:00:21]} Qb2 {[%clk 00:07:30]} {[%emt 00:00:18]} 24. Qc2 {[%clk 00:01:42]}
{[%emt 00:00:35]} Qxc2 {[%clk 00:07:25]} {[%emt 00:00:10]} 25. Bxc2 {[%clk
00:01:45]} Rg7 {[%clk 00:07:18]} {[%emt 00:00:12]} 26. Rb1 {[%clk 00:01:47]}
{[%emt 00:00:03]} b6 {[%clk 00:07:06]} {[%emt 00:00:17]} 27. Ba4 {[%clk
00:01:41]} {[%emt 00:00:12]} Kc7 {[%clk 00:06:49]} {[%emt 00:00:20]} 28. Bc6
{[%clk 00:01:42]} {[%emt 00:00:06]} a5 {[%clk 00:06:48]} {[%emt 00:00:06]} 29.
f3 {[%clk 00:00:43]} {[%emt 00:01:03]} Re7 {[%clk 00:06:37]} {[%emt 00:00:15]}
30. Kf2 {[%clk 00:00:48]} h5 {[%clk 00:05:17]} {[%emt 00:01:25]} 31. g3 {[%clk
00:00:20]} {[%emt 00:00:33]} Rb8 {[%clk 00:05:13]} {[%emt 00:00:07]} 32. e4
{[%clk 00:00:23]} {[%emt 00:00:04]} Rg8 {[%clk 00:03:37]} {[%emt 00:01:40]} 33.
Re1 {[%clk 00:00:22]} {[%emt 00:00:08]} Rgg7 {[%clk 00:03:36]} {[%emt
00:00:05]} 34. Ba4 {[%clk 00:00:12]} {[%emt 00:00:14]} Re5 {[%clk 00:03:17]}
{[%emt 00:00:24]} 35. exf5 {[%clk 00:00:09]} {[%emt 00:00:09]} Rxe1 {[%clk
00:02:48]} {[%emt 00:00:34]} 36. Kxe1 {[%clk 00:00:13]} gxf5 {[%clk 00:02:50]}
{[%emt 00:00:02]} 37. Kf2 {[%clk 00:00:10]} {[%emt 00:00:09]} Re7 {[%clk
00:02:34]} {[%emt 00:00:20]} 38. Bc2 {[%clk 00:00:11]} {[%emt 00:00:04]} Re5
{[%clk 00:02:37]} {[%emt 00:00:03]} 39. f4 {[%clk 00:00:13]} {[%emt 00:00:03]}
Re7 {[%emt 00:00:50]} 40. Bxf5 {[%clk 00:00:14]} {[%emt 00:00:01]} h4 {[%clk
00:01:57]} {[%emt 00:00:02]} 41. gxh4 {[%clk 00:00:16]} {[%emt 00:00:04]} Rg7
{[%clk 00:01:57]} {[%emt 00:00:05]} 42. h5 {[%clk 00:00:20]} Kd8 {[%clk
00:01:47]} {[%emt 00:00:14]} 43. h6 {[%clk 00:00:24]} {[%emt 00:00:02]} Rg8
{[%clk 00:01:49]} {[%emt 00:00:02]} 44. Nf3 {[%clk 00:00:16]} {[%emt 00:00:13]}
Ke7 {[%clk 00:01:52]} {[%emt 00:00:02]} 45. Nh4 {[%clk 00:00:12]} {[%emt
00:00:10]} Kf7 {[%clk 00:01:16]} {[%emt 00:00:40]} 46. h7 {[%clk 00:00:16]}
{[%emt 00:00:02]} Rh8 {[%clk 00:01:20]} {[%emt 00:00:01]} 47. Ng6 {[%clk
00:00:17]} {[%emt 00:00:04]} Kg7 {[%clk 00:01:23]} 48. Nxh8 {[%clk 00:00:21]}
{[%emt 00:00:02]} Kxh8 {[%clk 00:01:27]} {[%emt 00:00:01]} 49. Ke3 {[%clk
00:00:22]} {[%emt 00:00:04]} Kg7 {[%clk 00:01:24]} {[%emt 00:00:08]} 50. Kd2
{[%clk 00:00:26]} Kh8 {[%clk 00:00:22]} {[%emt 00:01:07]} 51. Kc2 {[%clk
00:00:29]} {[%emt 00:00:02]} 1-0

[Event "Rapid Tournament (RAP)"]
[Site "Biel, Switzerland"]
[Date "2026.07.12"]
[Round "3.40"]
[White "Boyer, Jean-Francois"]
[Black "Lopez, Manuel"]
[Result "1-0"]
[TimeControl "15 + 5"]
[WhiteTitle "-"]
[BlackTitle "-"]
[WhiteFideId "650226"]
[BlackFideId "1306324"]
[WhiteElo "1749"]
[BlackElo "1916"]

1. e4 {[%clk 00:15:07]} {[%emt 00:00:03]} e6 {[%clk 00:15:08]} {[%emt
00:00:04]} 2. d4 {[%clk 00:15:10]} c5 {[%clk 00:15:11]} {[%emt 00:00:01]} 3. d5
{[%clk 00:14:52]} {[%emt 00:00:24]} d6 {[%clk 00:15:14]} {[%emt 00:00:02]} 4.
Nc3 {[%clk 00:14:25]} {[%emt 00:00:31]} e5 {[%clk 00:15:09]} {[%emt 00:00:10]}
5. Nf3 {[%clk 00:13:54]} {[%emt 00:00:36]} Bg4 {[%clk 00:15:03]} {[%emt
00:00:11]} 6. h3 {[%clk 00:13:52]} {[%emt 00:00:08]} Bxf3 {[%clk 00:15:05]}
{[%emt 00:00:03]} 7. Bb5+ {[%clk 00:13:39]} {[%emt 00:00:17]} Nd7 {[%clk
00:15:05]} {[%emt 00:00:06]} 8. Qxf3 {[%clk 00:13:40]} {[%emt 00:00:03]} a6
{[%clk 00:15:08]} {[%emt 00:00:02]} 9. Bxd7+ {[%clk 00:11:43]} {[%emt
00:02:02]} Qxd7 {[%clk 00:15:10]} {[%emt 00:00:02]} 10. a4 {[%clk 00:11:19]}
{[%emt 00:00:31]} Rb8 {[%clk 00:15:12]} {[%emt 00:00:03]} 11. a5 {[%clk
00:10:53]} {[%emt 00:00:30]} b5 {[%clk 00:15:02]} {[%emt 00:00:16]} 12. axb6
{[%clk 00:10:55]} {[%emt 00:00:03]} Rxb6 {[%clk 00:15:05]} {[%emt 00:00:01]} 13.
O-O {[%clk 00:10:56]} {[%emt 00:00:04]} Nf6 {[%clk 00:14:56]} {[%emt 00:00:15]}
14. Ra5 {[%clk 00:10:50]} {[%emt 00:00:11]} Be7 {[%clk 00:14:44]} {[%emt
00:00:16]} 15. Qe2 {[%clk 00:10:44]} {[%emt 00:00:11]} O-O {[%clk 00:13:48]}
{[%emt 00:01:01]} 16. b3 {[%clk 00:10:27]} {[%emt 00:00:22]} Qb7 {[%clk
00:11:50]} {[%emt 00:02:03]} 17. Be3 {[%clk 00:09:50]} {[%emt 00:00:42]} Bd8
{[%clk 00:11:06]} {[%emt 00:00:50]} 18. Rfa1 {[%clk 00:08:23]} {[%emt
00:01:32]} Rb4 {[%clk 00:09:06]} {[%emt 00:02:04]} 19. Rxa6 {[%clk 00:08:04]}
{[%emt 00:00:24]} Nxe4 {[%clk 00:08:46]} {[%emt 00:00:25]} 20. Nxe4 {[%clk
00:07:40]} {[%emt 00:00:29]} Rxe4 {[%clk 00:08:49]} {[%emt 00:00:02]} 21. Rxd6
{[%clk 00:06:43]} {[%emt 00:01:02]} c4 {[%clk 00:07:45]} {[%emt 00:01:09]} 22.
bxc4 {[%clk 00:06:16]} {[%emt 00:00:32]} Qb2 {[%clk 00:07:48]} {[%emt
00:00:02]} 23. Rda6 {[%clk 00:06:07]} {[%emt 00:00:13]} Qc3 {[%clk 00:06:33]}
{[%emt 00:01:22]} 24. R6a4 {[%clk 00:04:47]} {[%emt 00:01:25]} Bg5 {[%clk
00:06:00]} {[%emt 00:00:38]} 25. R1a3 {[%clk 00:04:01]} {[%emt 00:00:50]} Qb2
{[%clk 00:05:54]} {[%emt 00:00:11]} 26. Rb3 {[%clk 00:04:04]} {[%emt 00:00:02]}
Qd4 {[%clk 00:04:15]} {[%emt 00:01:44]} 27. Qd3 {[%clk 00:03:11]} {[%emt
00:00:59]} Bxe3 {[%clk 00:03:36]} {[%emt 00:00:44]} 28. fxe3 {[%clk 00:03:11]}
{[%emt 00:00:04]} Qxd3 {[%clk 00:03:37]} {[%emt 00:00:04]} 29. cxd3 {[%clk
00:02:50]} {[%emt 00:00:27]} f5 {[%clk 00:03:30]} {[%emt 00:00:12]} 30. dxe4
{[%clk 00:02:50]} {[%emt 00:00:05]} 1-0